bitfinex/quotes_SOLUSD_20240902
["timestamp","ask_amount","ask_price","bid_price","bid_amount"]
[1725274727327,0.864626,132.58,132.57,7.5431]
[1725274727545,0.864626,132.58,132.57,52.5431]
[1725274727729,0.864626,132.58,132.57,72.5431]
[1725274727931,12.32327737,132.66,132.63,7.5393]
[1725274728144,12.32327737,132.66,132.64,7.5391]
[1725274728832,12.32327737,132.66,132.63,7.5395]
[1725274729105,12.32327737,132.64,132.62,7.5402]
[1725274729952,30.67884454,132.63,132.61,18.8519]
[1725274731148,7.541,132.61,132.57,22.4246]
[1725274731336,30.67884454,132.61,132.57,29.9676]
[1725274732447,38.21984454,132.61,132.57,29.9676]
[1725274732654,30.67884454,132.58,132.55,18.8602]
[1725274733851,30.67884454,132.58,132.53,22.4257]
[1725274734145,30.67884454,132.56,132.53,7.5453]
[1725274735424,38.22254454,132.56,132.52,26.4108]
[1725274735633,30.67884454,132.56,132.52,26.4108]
[1725274736532,38.22264454,132.56,132.52,26.4108]
[1725274736742,30.67884454,132.54,132.49,41.1617]
[1725274737259,30.67884454,132.54,132.5,7.5467]
[1725274738541,30.67884454,132.54,132.51,7.5465]
[1725274738855,30.67884454,132.54,132.52,7.546]
[1725274739667,30.67884454,132.56,132.53,7.5454]
[1725274741054,30.67884454,132.56,132.52,7.5458]
[1725274741538,30.67884454,132.54,132.52,7.5458]
[1725274741961,30.67884454,132.54,132.51,26.4124]
[1725274743839,7.5444,132.55,132.51,26.4124]
[1725274744047,30.67884454,132.54,132.51,26.4124]
[1725274744471,30.67884454,132.52,132.45,37.7479]
[1725274744637,15.96,132.55,132.45,37.7479]
[1725274744638,30.67884454,132.5,132.46,7.549]
[1725274744841,38.22604454,132.5,132.46,7.549]
[1725274745045,30.67884454,132.5,132.46,7.549]
[1725274745237,30.67884454,132.5,132.47,7.5486]
[1725274745442,38.22494454,132.52,132.47,7.5486]
[1725274745645,7.5466,132.51,132.47,7.5486]
[1725274745946,30.67884454,132.5,132.47,7.5486]
[1725274746662,30.67884454,132.5,132.46,7.5492]
[1725274747045,30.67884454,132.5,132.47,7.5488]
[1725274748568,30.67884454,132.5,132.48,7.5481]
[1725274748759,34.8213,132.55,132.5,7.547]
[1725274748760,7.5449,132.54,132.5,7.547]
[1725274748958,30.67884454,132.52,132.5,7.547]
[1725274749158,7.5449,132.54,132.5,7.547]
[1725274749357,38.22374454,132.54,132.5,7.547]
[1725274750657,30.67884454,132.54,132.51,7.5465]
[1725274751843,30.67884454,132.54,132.52,7.5459]
[1725274752044,30.67884454,132.54,132.53,7.5454]
[1725274752361,38.22264454,132.56,132.52,7.5456]
[1725274753568,38.22264454,132.56,132.51,18.8662]
[1725274753569,38.22264454,132.56,132.51,26.4125]
[1725274754357,30.67884454,132.56,132.52,7.5456]
[1725274754557,38.22274454,132.56,132.52,7.5456]
[1725274755277,30.67884454,132.56,132.53,7.5454]
[1725274755761,7.5433,132.57,132.53,7.5454]
[1725274755962,30.67884454,132.56,132.53,7.5454]
[1725274756147,38.22254454,132.56,132.52,7.5458]
[1725274757673,30.67884454,132.54,132.51,26.4125]
[1725274761665,7.5443,132.55,132.51,26.4125]
[1725274761871,30.67884454,132.54,132.51,26.4125]
[1725274762374,30.67884454,132.54,132.52,7.5456]
[1725274764871,30.67884454,132.54,132.48,18.8694]
[1725274765072,30.67884454,132.52,132.48,18.8694]
[1725274765261,30.67884454,132.52,132.48,26.4175]
[1725274766248,30.67884454,132.52,132.49,7.5476]
[1725274767079,38.22484454,132.52,132.48,26.4175]
[1725274768754,38.22484454,132.52,132.47,7.5487]
[1725274768755,7.5467,132.51,132.47,7.5487]
[1725274769084,30.67884454,132.5,132.47,7.5487]
[1725274769264,7.5467,132.51,132.47,7.5487]
[1725274769469,38.22594454,132.5,132.46,28.9488]
[1725274772174,30.67884454,132.5,132.47,7.5488]
[1725274772887,7.5468,132.51,132.47,7.5488]
[1725274773058,30.67884454,132.5,132.47,7.5488]
[1725274775762,30.67884454,132.5,132.48,7.5481]
[1725274776088,30.67884454,132.5,132.47,26.42]
[1725274777981,12.29373539,132.49,132.47,26.42]
[1725274779379,7.5464,132.52,132.48,7.548]
[1725274779687,12.29373539,132.5,132.48,7.548]
[1725274781480,7.5462,132.52,132.49,7.5476]
[1725274781774,12.29373539,132.5,132.49,7.5476]
[1725274783277,12.29373539,132.5,132.48,7.5481]
[1725274783668,12.29373539,132.5,132.47,26.4201]
[1725274784483,12.29373539,132.5,132.48,7.5479]
[1725274785192,12.29373539,132.5,132.49,7.5477]
[1725274785995,12.29373539,132.5,132.48,7.5481]
[1725274787086,12.29373539,132.5,132.47,26.4201]
[1725274789003,12.29373539,132.48,132.41,7.5521]
[1725274789132,12.29373539,132.44,132.41,7.5521]
[1725274789322,12.29373539,132.44,132.42,7.5516]
[1725274790498,12.29373539,132.46,132.43,7.551]
[1725274791772,2.68365288,132.51,132.39,21.5846]
[1725274791979,7.5466,132.51,132.46,26.4223]
[1725274792205,12.29373539,132.48,132.46,26.4223]
[1725274800215,12.29373539,132.48,132.44,22.0324]
[1725274800407,7.5508,132.44,132.38,22.6959]
[1725274800715,12.29373539,132.42,132.41,7.5522]
[1725274801390,49.17494156,132.51,132.4,37.7618]
[1725274801713,2.5876585,132.54,132.47,21.3157]
[1725274801915,37.7031,132.62,132.47,21.3157]
[1725274801916,12.29373539,132.55,132.51,18.8655]
[1725274802130,12.29373539,132.55,132.52,7.5456]
[1725274802412,12.29373539,132.56,132.53,22.599]
[1725274802794,7.5427,132.58,132.53,30.1443]
[1725274803109,12.29373539,132.58,132.54,7.5448]
[1725274803632,2.62423635,132.62,132.55,18.8599]
[1725274803795,12.29373539,132.6,132.58,7.5425]
[1725274803991,12.29373539,132.6,132.55,63.8599]
[1725274803992,30.68357967,132.6,132.55,63.8599]
[1725274805717,64.62287967,132.65,132.57,18.8566]
[1725274805718,15.0924,132.65,132.57,18.8566]
[1725274805915,30.68357967,132.6,132.57,18.8566]
[1725274806119,38.22497967,132.6,132.56,7.5437]
[1725274806414,30.68357967,132.6,132.56,7.5437]
[1725274807907,30.68357967,132.59,132.56,7.5436]
[1725274809806,30.68357967,132.59,132.57,7.5429]
[1725274810515,30.68357967,132.59,132.56,26.4023]
[1725274813803,30.68357967,132.57,132.54,7.5448]
[1725274816122,7.542,132.59,132.54,7.5448]
[1725274816325,30.68357967,132.57,132.54,7.5448]
[1725274817224,30.68357967,132.55,132.5,18.867]
[1725274817540,30.68357967,132.53,132.51,7.5464]
[1725274819318,30.68357967,132.55,132.52,7.546]
[1725274821625,38.22807967,132.55,132.5,18.867]
[1725274821814,30.68357967,132.55,132.51,7.546]
[1725274822015,30.68357967,132.55,132.52,7.546]
[1725274823532,30.68357967,132.55,132.53,7.5453]
[1725274825530,7.5427,132.58,132.53,7.5453]
[1725274825733,30.68357967,132.56,132.53,7.5453]
[1725274825917,12.28348086,132.55,132.53,7.5453]
[1725274826731,12.28348086,132.55,132.52,26.4106]
[1725274827536,12.28348086,132.53,132.52,26.4106]
[1725274828727,12.28348086,132.53,132.5,7.5469]
[1725274828911,12.28348086,132.53,132.49,40.9772]
[1725274829432,12.28348086,132.53,132.51,18.8662]
[1725274829727,12.28348086,132.55,132.53,7.5449]
[1725274830437,12.28348086,132.55,132.52,7.5458]
[1725274831423,12.28348086,132.53,132.52,7.5458]
[1725274831720,12.28348086,132.53,132.51,26.4126]
[1725274831930,12.28348086,132.53,132.46,23.2009]
[1725274832164,12.28348086,132.5,132.46,30.7499]
[1725274832385,12.28348086,132.48,132.47,7.5488]
[1725274832656,12.28348086,132.48,132.45,18.8741]
[1725274833116,12.28348086,132.48,132.45,26.4236]
[1725274833431,12.28348086,132.48,132.46,7.5493]
[1725274834014,30.74260516,132.49,132.46,7.5493]
[1725274837410,30.74260516,132.47,132.45,18.8741]
[1725274837713,30.74260516,132.47,132.44,7.5503]
[1725274838324,30.74260516,132.47,132.42,42.0792]
[1725274838553,30.74260516,132.47,132.44,7.5501]
[1725274838909,30.74260516,132.47,132.45,7.5499]
[1725274839746,30.74260516,132.47,132.42,42.0792]
[1725274839919,30.74260516,132.45,132.43,7.551]
[1725274840117,30.74260516,132.45,132.44,7.5505]
[1725274840437,30.74260516,132.47,132.44,7.5505]
[1725274841016,30.74260516,132.45,132.42,26.4295]
[1725274841329,30.74260516,132.43,132.41,7.5521]
[1725274843727,30.74260516,132.43,132.39,18.8826]
[1725274844031,38.29370516,132.43,132.39,26.4356]
[1725274844232,30.74260516,132.41,132.38,29.8404]
[1725274844621,30.74260516,132.39,132.36,18.8866]
[1725274846233,30.74260516,132.39,132.36,26.4415]
[1725274846443,30.74260516,132.39,132.36,18.8866]
[1725274846636,30.74260516,132.37,132.35,7.5555]
[1725274846939,30.74260516,132.37,132.34,7.556]
[1725274848335,30.74260516,132.37,132.35,7.5556]
[1725274849050,30.74260516,132.37,132.34,7.5561]
[1725274851925,30.74260516,132.37,132.33,26.4479]
[1725274852322,2.61032961,132.4,132.33,18.8911]
[1725274852529,30.74260516,132.39,132.35,7.5552]
[1725274853326,38.29610516,132.39,132.35,7.5552]
[1725274854936,30.74260516,132.39,132.36,7.555]
[1725274856060,12.31556187,132.38,132.36,7.555]
[1725274860352,12.31556187,132.38,132.35,26.4445]
[1725274860539,12.31556187,132.36,132.32,59.8434]
[1725274860744,2.62747617,132.42,132.32,18.8923]
[1725274860745,12.31556187,132.33,132.32,18.8923]
[1725274860995,12.31556187,132.33,132.32,26.4497]
[1725274861559,12.31556187,132.35,132.33,7.5564]
[1725274862654,12.31556187,132.35,132.34,7.5562]
[1725274863248,12.31556187,132.35,132.33,7.5567]
[1725274864008,30.80284254,132.36,132.33,7.5567]
[1725274864175,30.80284254,132.34,132.32,26.4493]
[1725274867049,7.5554,132.36,132.34,7.5558]
[1725274867050,30.80284254,132.36,132.34,7.5558]
[1725274867357,16.4347,132.4,132.34,18.8905]
[1725274867547,30.80284254,132.38,132.34,18.8905]
[1725274869467,30.80284254,132.38,132.37,7.5545]
[1725274870152,30.80284254,132.41,132.36,18.8876]
[1725274870347,30.80284254,132.41,132.4,7.5528]
[1725274870549,30.80284254,132.43,132.4,7.5528]
[1725274874840,38.35414254,132.43,132.39,7.5532]
[1725274875048,30.80284254,132.41,132.39,7.5532]
[1725274875263,30.80284254,132.41,132.38,18.8845]
[1725274875563,30.80284254,132.39,132.38,18.8845]
[1725274876256,30.80284254,132.39,132.37,7.5544]
[1725274879366,30.80284254,132.39,132.31,37.7886]
[1725274879367,7.5551,132.37,132.32,18.8925]
[1725274879575,15.9927,132.42,132.32,18.8925]
[1725274879576,30.80284254,132.36,132.32,18.8925]
[1725274880772,30.80284254,132.34,132.31,22.2818]
[1725274881148,30.80284254,132.34,132.29,18.8966]
[1725274881355,30.80284254,132.34,132.3,1.49205186]
[1725274881871,18.8838,132.39,132.25,19.767126]
[1725274881872,7.5596,132.29,132.25,19.767126]
[1725274882086,30.80284254,132.28,132.25,27.328426]
[1725274882249,7.5575,132.32,132.25,19.767126]
[1725274882449,38.35964254,132.33,132.29,7.5591]
[1725274882752,38.35964254,132.33,132.28,7.5595]
[1725274883859,38.35964254,132.33,132.29,18.8969]
[1725274883860,30.80284254,132.33,132.29,18.8969]
[1725274884116,30.80284254,132.33,132.3,7.5584]
[1725274886057,30.80284254,132.33,132.29,26.4559]
[1725274886260,38.36004254,132.33,132.29,18.8969]
[1725274886860,30.80284254,132.31,132.26,18.9015]
[1725274887161,38.36194254,132.29,132.25,0.864626]
[1725274887360,38.36194254,132.29,132.25,8.425826]
[1725274887875,30.80284254,132.27,132.25,8.425826]
[1725274889183,30.80284254,132.27,132.25,0.864626]
[1725274890988,7.5596,132.29,132.25,0.864626]
[1725274891280,38.36244254,132.29,132.25,8.425926]
[1725274892966,24.3820448,132.32,132.25,0.864626]
[1725274892967,30.80284254,132.27,132.25,0.864626]
[1725274894283,38.36314254,132.27,132.25,0.864626]
[1725274894491,30.80284254,132.27,132.25,0.864626]
[1725274894660,30.80284254,132.27,132.2,60.1812]
[1725274894661,30.80284254,132.27,132.21,7.5636]
[1725274894966,30.80284254,132.24,132.2,48.8351]
[1725274895167,30.80284254,132.24,132.21,7.5635]
[1725274895366,30.80284254,132.26,132.23,7.5621]
[1725274895567,30.80284254,132.26,132.22,18.9073]
[1725274896476,18.4338448,132.32,132.24,18.9046]
[1725274896674,30.80284254,132.29,132.26,7.5607]
[1725274898277,7.5586,132.3,132.26,7.5607]
[1725274898594,30.80284254,132.29,132.26,7.5607]
[1725274899181,7.558,132.31,132.27,7.5602]
[1725274899494,30.80284254,132.3,132.27,7.5602]
[1725274901122,38.36154254,132.3,132.26,26.4624]
[1725274901462,30.80284254,132.28,132.26,26.4624]
[1725274902679,30.80284254,132.28,132.27,7.5602]
[1725274904061,30.80284254,132.28,132.26,18.9018]
[1725274904675,30.80284254,132.28,132.2,22.3614]
[1725274904890,46.43754254,132.3,132.22,7.5628]
[1725274904891,30.80284254,132.24,132.22,7.5628]
[1725274905820,30.80284254,132.24,132.21,7.5635]
[1725274906797,30.80284254,132.24,132.22,18.9076]
[1725274907001,30.80284254,132.24,132.22,26.4705]
[1725274908483,30.80284254,132.24,132.23,7.5625]
[1725274908872,30.80284254,132.24,132.22,26.4705]
[1725274910516,30.80284254,132.24,132.2,22.3614]
[1725274910692,30.80284254,132.24,132.21,7.5637]
[1725274911200,38.36504254,132.24,132.2,7.5642]
[1725274911803,30.80284254,132.24,132.21,7.5637]
[1725274913199,38.36604254,132.22,132.19,0.10332389]
[1725274913410,30.80284254,132.22,132.19,0.10332389]
[1725274913906,30.80284254,132.23,132.21,7.5636]
[1725274914086,8.52614026,132.29,132.22,18.9075]
[1725274914285,30.80284254,132.24,132.22,26.4704]
[1725274914501,30.80284254,132.24,132.22,18.9075]
[1725274914895,30.80284254,132.24,132.2,7.5641]
[1725274915086,30.80284254,132.24,132.21,7.5636]
[1725274917211,30.80284254,132.24,132.22,7.563]
[1725274918794,30.80284254,132.24,132.21,18.9088]
[1725274919192,30.80284254,132.24,132.21,26.4721]
[1725274920775,30.80284254,132.22,132.21,18.9088]
[1725274921309,30.80284254,132.22,132.19,0.10332389]
[1725274921492,30.80284254,132.22,132.2,7.5641]
[1725274923252,30.80284254,132.22,132.19,26.57962389]
[1725274923407,30.80284254,132.22,132.19,19.01502389]
[1725274923925,12.34784952,132.2,132.19,19.01502389]
[1725274924414,12.34784952,132.2,132.19,26.57982389]
[1725274925223,12.34784952,132.2,132.19,18.9117]
[1725274925913,12.34784952,132.2,132.19,26.4765]
[1725274926499,12.34784952,132.22,132.19,26.4765]
[1725274926593,15.706,132.28,132.19,37.8218]
[1725274926921,12.34784952,132.27,132.24,7.5618]
[1725274927108,7.5603,132.27,132.23,26.4675]
[1725274927320,12.34784952,132.25,132.21,7.5635]
[1725274927826,12.34784952,132.25,132.22,7.563]
[1725274929008,12.34784952,132.23,132.22,7.563]
[1725274929213,12.34784952,132.23,132.2,18.9102]
[1725274929517,12.34784952,132.21,132.2,26.4744]
[1725274929839,12.34784952,132.21,132.17,41.7927]
[1725274930122,12.34784952,132.21,132.2,7.5642]
[1725274930291,12.34784952,132.21,132.17,22.8784]
[1725274930292,15.9113,132.27,132.17,22.8784]
[1725274930604,7.5602,132.28,132.24,7.5616]
[1725274930805,12.34784952,132.26,132.24,7.5616]
[1725274933817,12.34784952,132.26,132.23,26.4687]
[1725274934006,12.34784952,132.24,132.23,26.4687]
[1725274935236,12.34784952,132.24,132.21,7.5633]
[1725274935421,12.34784952,132.22,132.21,7.5633]
[1725274936001,12.34784952,132.22,132.2,26.4738]
[1725274937115,12.34784952,132.22,132.21,7.5637]
[1725274938303,12.34784952,132.24,132.22,7.563]
[1725274938653,12.34784952,132.26,132.24,7.5619]
[1725274941707,12.34784952,132.26,132.24,26.4668]
[1725274942835,12.34784952,132.26,132.25,7.5614]
[1725274944120,12.34784952,132.26,132.24,26.4666]
[1725274944443,12.34784952,132.26,132.25,7.5614]
[1725274944940,12.34784952,132.26,132.23,7.5622]
[1725274945123,7.5604,132.27,132.23,7.5622]
[1725274945124,12.34784952,132.24,132.23,7.5622]
[1725274945639,87.05144881,132.3,132.24,7.5618]
[1725274945640,12.34784952,132.26,132.24,7.5618]
[1725274947037,7.5599,132.28,132.24,7.5618]
[1725274947244,12.34784952,132.26,132.24,7.5618]
[1725274953948,12.34784952,132.26,132.21,10.6464813]
[1725274953949,19.90894952,132.26,132.22,7.5629]
[1725274954145,12.34784952,132.24,132.22,7.5629]
[1725274954836,12.34784952,132.24,132.21,12.88900939]
[1725274955034,68.15484881,132.3,132.21,5.32560939]
[1725274955239,12.34784952,132.22,132.21,5.32560939]
[1725274955428,7.5631,132.22,132.21,5.32560939]
[1725274955784,7.5631,132.22,132.17,50.46358191]
[1725274955959,12.34784952,132.2,132.17,50.46358191]
[1725274956160,12.34784952,132.18,132.14,26.4866]
[1725274956335,12.34784952,132.16,132.14,26.4866]
[1725274957735,12.34784952,132.16,132.15,7.5671]
[1725274957936,30.88864481,132.18,132.15,7.5671]
[1725274959734,30.88864481,132.18,132.14,26.4865]
[1725274960551,30.88864481,132.18,132.15,7.5668]
[1725274960734,38.45304481,132.2,132.16,7.5665]
[1725274962341,2.58802252,132.22,132.15,7.567]
[1725274962342,30.88864481,132.18,132.15,7.567]
[1725274966467,30.88864481,132.18,132.16,7.5665]
[1725274967456,30.88864481,132.2,132.17,7.566]
[1725274969250,2.58755541,132.23,132.18,18.9131]
[1725274969458,30.88864481,132.23,132.19,7.5645]
[1725274969754,30.88864481,132.24,132.21,7.5636]
[1725274971355,30.88864481,132.27,132.22,18.9077]
[1725274971562,30.88864481,132.27,132.24,7.5616]
[1725274974649,2.69222961,132.3,132.24,18.9045]
[1725274974855,30.88864481,132.28,132.24,18.9045]
[1725274975360,30.88864481,132.28,132.26,7.5608]
[1725274976756,30.88864481,132.28,132.25,7.5612]
[1725274978861,30.88864481,132.28,132.24,18.9045]
[1725274978862,30.88864481,132.26,132.24,26.4663]
[1725274981361,30.88864481,132.26,132.21,24.9655]
[1725274981549,30.88864481,132.24,132.21,24.9655]
[1725274981752,30.88864481,132.24,132.18,34.6433]
[1725274982071,38.45104481,132.24,132.2,7.5639]
[1725274982563,30.88864481,132.22,132.2,7.5639]
[1725274984759,30.88864481,132.22,132.21,7.5637]
[1725274984965,30.88864481,132.24,132.21,7.5637]
[1725274985967,30.88864481,132.22,132.2,26.4746]
[1725274987016,30.88864481,132.22,132.2,26.7168564]
[1725274990174,12.3458698,132.22,132.2,26.7168564]
[1725274990978,12.3458698,132.22,132.2,0.2422564]
[1725274991197,7.5637,132.21,132.2,0.2422564]
[1725274991385,12.3458698,132.18,132.17,18.9138]
[1725274991858,12.3458698,132.2,132.17,18.9138]
[1725274992061,12.3458698,132.2,132.18,7.5649]
[1725274994171,18.9005,132.28,132.19,18.9118]
[1725274994366,12.3458698,132.23,132.19,18.9118]
[1725274994860,19.07735827,132.27,132.19,18.9118]
[1725274995104,12.3458698,132.21,132.2,7.5641]
[1725274995379,12.3458698,132.21,132.19,26.4764]
[1725274995957,7.5624,132.24,132.19,26.4764]
[1725274996362,12.3458698,132.22,132.19,26.4764]
[1725274997572,12.3458698,132.2,132.19,26.4764]
[1725274999361,12.3458698,132.2,132.19,18.9118]
[1725275001780,12.3458698,132.2,132.19,26.4766]
[1725275002168,12.3458698,132.22,132.2,7.5642]
[1725275003376,18.9022,132.26,132.2,7.5642]
[1725275003586,12.3458698,132.23,132.21,18.9092]
[1725275005872,7.5608,132.26,132.22,7.5626]
[1725275006074,16.3389,132.3,132.25,7.5613]
[1725275006279,12.3458698,132.27,132.24,7.5618]
[1725275006519,12.3458698,132.25,132.24,7.5618]
[1725275006893,19.9074698,132.25,132.22,18.9067]
[1725275007198,61.729349,132.23,132.18,6.2722]
[1725275007275,12.3458698,132.2,132.18,6.2722]
[1725275007483,12.3458698,132.2,132.16,16.2361]
[1725275008488,12.3458698,132.18,132.17,7.5659]
[1725275010016,12.3458698,132.18,132.16,18.9153]
[1725275010077,30.87999858,132.19,132.16,26.4817]
[1725275015999,30.87999858,132.19,132.16,18.9153]
[1725275017382,38.44489858,132.19,132.16,18.9153]
[1725275017699,38.44489858,132.19,132.15,7.567]
[1725275018291,30.87999858,132.17,132.13,18.9196]
[1725275019302,30.87999858,132.17,132.13,26.4877]
[1725275019303,38.44599858,132.17,132.13,26.4877]
[1725275020301,30.87999858,132.17,132.14,7.5676]
[1725275020499,5.9482,132.22,132.15,18.9173]
[1725275020708,2.5779147,132.23,132.12,27.88287228]
[1725275020875,30.87999858,132.22,132.18,7.565]
[1725275021084,7.5627,132.23,132.19,7.5648]
[1725275021384,30.87999858,132.22,132.17,18.9147]
[1725275022382,38.44309858,132.22,132.18,7.565]
[1725275025394,30.87999858,132.2,132.17,18.9147]
[1725275025595,38.44429858,132.2,132.17,18.9147]
[1725275025920,38.44429858,132.2,132.16,7.566]
[1725275026981,7.5654,132.19,132.14,26.4859]
[1725275027202,30.87999858,132.18,132.14,26.4859]
[1725275027501,38.44549858,132.18,132.14,26.4859]
[1725275028493,38.44549858,132.18,132.14,18.9183]
[1725275031807,7.5655,132.18,132.14,26.486]
[1725275031984,10.15096366,132.19,132.14,18.9183]
[1725275032183,30.87999858,132.19,132.14,18.9183]
[1725275033306,38.44509858,132.19,132.14,18.9183]
[1725275033607,2.69400934,132.21,132.14,26.4856]
[1725275033608,30.87999858,132.17,132.14,26.4856]
[1725275034012,38.44619858,132.17,132.12,30.1178]
[1725275034181,38.44619858,132.17,132.13,7.5682]
[1725275035890,7.567,132.16,132.12,7.5686]
[1725275037107,38.44709858,132.15,132.11,26.4915]
[1725275037890,30.87999858,132.15,132.12,7.5688]
[1725275038909,7.5667,132.16,132.12,7.5688]
[1725275039413,38.44609858,132.17,132.13,7.5682]
[1725275039988,7.5666,132.16,132.12,7.5687]
[1725275041217,30.87999858,132.17,132.13,18.92]
[1725275041528,15.5418,132.2,132.13,18.92]
[1725275041529,30.87999858,132.19,132.13,18.92]
[1725275041592,7.5654,132.18,132.14,7.5672]
[1725275041795,30.87999858,132.21,132.15,18.9172]
[1725275042017,38.44419858,132.21,132.17,7.5659]
[1725275042222,30.87999858,132.21,132.17,7.5659]
[1725275043302,30.87999858,132.19,132.12,41.7597]
[1725275043498,30.87999858,132.19,132.14,7.5673]
[1725275044212,30.87999858,132.19,132.13,7.5681]
[1725275045168,18.9081,132.22,132.12,41.7597]
[1725275045169,38.44639858,132.17,132.12,49.3284]
[1725275045509,7.5655,132.18,132.12,41.7597]
[1725275045817,30.87999858,132.18,132.14,7.5672]
[1725275046492,7.565,132.19,132.15,7.567]
[1725275046696,7.564,132.21,132.12,22.8387]
[1725275046911,7.564,132.21,132.17,7.5659]
[1725275047105,7.5643,132.2,132.16,26.4826]
[1725275047298,38.44429858,132.2,132.16,26.4826]
[1725275048100,7.5643,132.2,132.16,26.4826]
[1725275051712,30.87999858,132.17,132.13,18.9203]
[1725275053295,7.5655,132.18,132.14,7.5673]
[1725275053521,38.44499858,132.19,132.15,7.567]
[1725275058223,38.44499858,132.19,132.14,7.5677]
[1725275058224,7.5654,132.18,132.14,7.5677]
[1725275058932,7.565,132.19,132.15,7.567]
[1725275059118,38.44499858,132.19,132.15,7.567]
[1725275060750,2.70337317,132.24,132.16,6.3926]
[1725275061025,30.87999858,132.24,132.16,6.3926]
[1725275061239,30.87999858,132.24,132.17,45.0]
[1725275061629,2.68330347,132.25,132.19,18.9119]
[1725275061816,30.87999858,132.28,132.18,15.8108]
[1725275062017,7.5598,132.28,132.24,18.9047]
[1725275062237,15.3819,132.3,132.24,26.4666]
[1725275062238,30.87999858,132.29,132.24,26.4666]
[1725275062459,7.5599,132.28,132.24,18.9047]
[1725275062940,38.44019858,132.27,132.22,13.7903]
[1725275064413,38.44019858,132.27,132.23,7.5624]
[1725275065344,38.44019858,132.27,132.22,13.7904]
[1725275065834,30.87999858,132.25,132.21,18.9087]
[1725275066137,67.8389249,132.3,132.19,6.0706]
[1725275066138,30.87999858,132.23,132.19,6.0706]
[1725275067026,7.5636,132.22,132.18,15.8108]
[1725275067229,38.44369858,132.21,132.17,18.9144]
[1725275067434,18.903,132.26,132.17,18.9144]
[1725275067624,30.87999858,132.24,132.17,18.9144]
[1725275067826,38.44239858,132.24,132.19,7.5644]
[1725275068524,30.87999858,132.24,132.19,26.4761]
[1725275068923,2.68140684,132.26,132.19,26.4761]
[1725275068924,30.87999858,132.22,132.19,26.4761]
[1725275069131,38.44319858,132.22,132.16,18.9154]
[1725275069329,7.564,132.21,132.17,7.5658]
[1725275069632,7.564,132.21,132.16,26.4818]
[1725275070355,30.87999858,132.2,132.16,26.4818]
[1725275070637,7.5649,132.19,132.16,18.9154]
[1725275072049,38.44549858,132.18,132.13,18.9207]
[1725275072337,38.44549858,132.18,132.13,26.4885]
[1725275072634,7.566,132.17,132.13,26.4885]
[1725275073013,30.87999858,132.14,132.07,7.2201092]
[1725275073334,30.87999858,132.14,132.09,18.9257]
[1725275073971,38.44669858,132.16,132.09,18.9257]
[1725275074443,30.87999858,132.16,132.11,18.923]
[1725275074739,7.5661,132.17,132.11,18.923]
[1725275075319,7.5661,132.17,132.13,7.5682]
[1725275075637,38.44549858,132.18,132.14,7.5677]
[1725275076936,38.44549858,132.18,132.13,7.5681]
[1725275078439,38.44549858,132.18,132.14,7.5675]
[1725275081551,7.5662,132.17,132.13,26.4882]
[1725275082144,7.5667,132.16,132.13,18.9201]
[1725275082437,7.5662,132.17,132.13,18.9201]
[1725275083168,7.5662,132.17,132.13,26.4883]
[1725275083649,38.44559858,132.18,132.14,7.5675]
[1725275083888,30.87999858,132.2,132.15,26.4845]
[1725275084143,7.5646,132.2,132.16,7.5664]
[1725275084340,38.44419858,132.21,132.17,18.9146]
[1725275084751,7.5644,132.2,132.16,7.5664]
[1725275085246,7.5644,132.2,132.15,7.5669]
[1725275085739,7.5647,132.2,132.15,7.5669]
[1725275088448,7.5647,132.2,132.16,7.5665]
[1725275088765,38.44409858,132.21,132.16,7.5665]
[1725275089623,30.87999858,132.23,132.2,7.5642]
[1725275089867,30.87999858,132.23,132.19,7.5645]
[1725275090124,38.44159858,132.25,132.2,7.5642]
[1725275090323,7.562,132.24,132.2,7.5642]
[1725275091754,7.5594,132.29,132.21,6.4416]
[1725275091943,38.43919858,132.29,132.24,18.9047]
[1725275092327,30.87999858,132.29,132.26,7.5607]
[1725275092732,30.87999858,132.29,132.25,7.5612]
[1725275093658,38.43909858,132.29,132.24,26.4665]
[1725275093859,38.44049858,132.27,132.22,7.5627]